[Event "German Bundesliga 2021-22"]
[Site "Germany"]
[Date "2022.04.10"]
[Round "4.15"]
[White "Hainke, Guntram"]
[Black "Meier, Georg"]
[Result "1/2-1/2"]
[ECO "A40"]
[WhiteElo "2302"]
[BlackElo "2631"]
[Annotator "TA"]
[PlyCount "90"]
[EventDate "2022.03.05"]
[EventType "team-tourn"]
[EventCountry "GER"]
[SourceTitle "playchess.com"]
[Source "ChessBase"]
[SourceQuality "1"]
[TimeControl "40/5400+30:1800+30"]

{[%evp 9,90,40,35,40,69,39,43,40,33,39,59,31,42,16,17,13,26,0,29,0,0,0,0,0,18,0,5,16,20,12,19,0,0,-49,29,27,20,16,62,60,79,40,105,104,159,134,125,115,104,80,100,85,90,92,96,27,29,31,66,72,72,71,70,65,77,68,65,20,25,25,30,20,18,17,31,17,43,32,45,0,10,0,56]} 1. d4 {[%emt 0:00:00]} e6 {[%emt 0:00:00]} 2. c4 {[%emt 0:00:00]} b6 {[%emt 0:00:00]} 3. e4 {[%emt 0:00:00]} Bb7 {[%emt 0:00:00]} 4. Bd3 {[%emt 0:00:00]} Bb4+ {[%emt 0:00:00]} 5. Bd2 {[%emt 0:00:00]} Bxd2+ {[%emt 0:00:00]} 6. Qxd2 {[%emt 0:00:00] A40: Unusual replies to 1 d4.} Nh6 {[%emt 0:00:00] [#]} 7. Ne2 $146 {[%emt 0:08:44]} ({Predecessor:} 7. Nf3 f6 8. Nc3 Nf7 9. O-O Nc6 10. Rfe1 Ng5 11. Nxg5 fxg5 12. Ne2 Qf6 13. e5 {½-½ (23) Ragger,M (2668)-Graf,F (2493) Germany 2013}) 7... O-O {[%emt 0:00:00]} 8. O-O {[%emt 0:03:36] White is slightly better.} f5 {[%emt 0:02:38]} 9. Nbc3 {[%emt 0:13:13]} Nc6 {[%emt 0:00:07][%cal Bb8c6,Bc6e5,Be5g6,Bg6f4][%mdl 32]} 10. exf5 {[%emt 0:18:40]} Nxf5 {[%emt 0:00:37]} 11. Bxf5 {[%emt 0:03:04]} Rxf5 {[%emt 0:01:13]} 12. Ng3 {[%emt 0:00:55]} Rf7 {[%emt 0:04:07]} 13. d5 {[%emt 0:07:20]} Ne5 {[%emt 0:01:50]} 14. dxe6 {[%emt 0:07:17]} dxe6 {[%emt 0:00:43]} 15. Qe2 {[%emt 0:02:50]} Ng6 {[%emt 0:04:41][%cal Ob7g2]} 16. Rad1 {[%emt 0:01:54]} (16. Qxe6 $2 Nf4 17. Qg4 Bxg2 $19) 16... Qg5 {[%emt 0:10:44] [#] White must now prevent ...Nf4.} 17. Nce4 {[%emt 0:01:01][%cal Bc3e4,Be4f2,Bf2g4,Bg4e5][%mdl 32]} (17. Qxe6 $2 Nf4 18. Nce4 (18. h4 $2 Qxh4 19. Rd4 Nh3+ 20. Qxh3 Qxd4 $19) 18... Nxe6 $19) 17... Qe5 {[%emt 0:01:16][%cal Oh7h5]} 18. f3 {[%emt 0:01:08]} (18. Rfe1 {looks sharper.} Raf8 19. Qd2 h5 20. Ng5) 18... Nf4 {[%emt 0:00:38]} (18... h5 {feels hotter.} 19. Nc3 h4 20. Nge4 h3) 19. Qd2 {[%emt 0:01:37]} Raf8 {[%emt 0:04:26]} 20. b3 {[%emt 0:15:22]} g5 {[%emt 0:04:24][%cal Og5g4]} 21. Rfe1 {[%emt 0:03:49]} (21. Qc3 $11 Qxc3 22. Nxc3) 21... h6 {[%emt 0:01:53]} (21... Qg7 $1 $15 22. h3 h5) 22. Nf2 $36 {[%emt 0:00:47][%mdl 2048] White is more active. Pair of Knights!} Qg7 {[%emt 0:00:41]} 23. Ng4 {[%emt 0:05:45]} h5 {[%emt 0:02:26]} (23... Re7 $11) 24. Ne5 $14 {[%emt 0:00:38]} Re7 {[%emt 0:00:04]} 25. Qe3 {[%emt 0:01:47]} g4 {[%emt 0:04:08]} (25... h4 $14) 26. Rd4 $16 {[%emt 0:00:43]} Qf6 {[%emt 0:05:50]} (26... Qg5 $142) 27. Rxf4 Qxf4 {[%emt 0:00:06]} 28. Qxf4 {[%emt 0:02:35]} Rxf4 {[%emt 0:00:09]} 29. Ng6 {[%emt 0:00:02]} Rff7 {[%emt 0:00:20]} 30. Nxe7+ {[%emt 0:00:26]} Rxe7 {[%emt 0:00:03]} 31. fxg4 {[%emt 0:00:21]} ({Don't take} 31. Nxh5 gxf3 32. Nf4 fxg2 $14) 31... hxg4 {[%emt 0:00:08][%mdl 4096] Endgame KRB-KRN} 32. Nf5 {[%emt 0:00:14]} Rd7 $11 {[%emt 0:00:36]} 33. Rxe6 {[%emt 0:01:11]} Kf7 {[%emt 0:00:34]} 34. Re2 {[%emt 0:00:30] aiming for Nh6+. &Bianco is more active.} Kf6 {[%emt 0:01:04]} 35. Ne3 {[%emt 0:00:25]} Kg5 {[%emt 0:00:15]} 36. Kf2 {[%emt 0:00:46]} Kf4 {[%emt 0:00:31]} 37. g3+ {[%emt 0:01:22]} Kg5 {[%emt 0:00:07]} 38. Ng2 {[%emt 0:00:50]} Bf3 {[%emt 0:02:58]} 39. Rc2 {[%emt 0:00:33]} Kf5 {[%emt 0:07:00]} 40. Ne3+ {[%emt 0:00:33]} Ke4 {[%emt 0:00:23]} 41. Nf1 {[%emt 0:00:00]} Rf7 {[%emt 0:00:00] [#] And now ...Bd1+ would win.} 42. Rd2 {[%emt 0:00:00]} Bh1+ {[%emt 0:00:00]} 43. Kg1 {[%emt 0:00:00] Threatens to win with Rd1.} Bf3 {[%emt 0:00:00] Against Rd1} 44. Kf2 {[%emt 0:00:00]} Bh1+ {[%emt 0:00:00]} 45. Kg1 {[%emt 0:00:00]} (45. Ke1 $11 {should be considered.}) 45... Bf3 {[%emt 0:00:00] Weighted Error Value: White=0.14 (very precise) /Black=0.15 (very precise)} 1/2-1/2

[Event "German Bundesliga 2021-22"]
[Site "Germany"]
[Date "2022.04.10"]
[Round "4.16"]
[White "Doettling, Fabian"]
[Black "Rudolph, Eva"]
[Result "1-0"]
[ECO "D38"]
[WhiteElo "2587"]
[BlackElo "1801"]
[Annotator "TA"]
[PlyCount "82"]
[EventDate "2022.03.05"]
[EventType "team-tourn"]
[EventCountry "GER"]
[SourceTitle "playchess.com"]
[Source "ChessBase"]
[SourceQuality "1"]
[TimeControl "40/5400+30:1800+30"]

{[%evp 10,82,16,17,26,22,26,24,10,18,23,23,64,64,67,68,61,33,95,90,105,104,127,126,135,127,139,122,160,142,229,206,232,245,237,262,256,235,295,287,274,268,261,243,483,472,483,493,580,583,491,575,562,499,480,497,480,491,495,504,558,552,583,525,553,515,29983,29984,29984,29985,29985,29986,29986,29987,29987]} 1. d4 {[%emt 0:00:00]} d5 {[%emt 0:00:00]} 2. Nf3 {[%emt 0:00:00]} Nf6 {[%emt 0:00:00]} 3. c4 {[%emt 0:00:00]} e6 {[%emt 0:00:00]} 4. Nc3 {[%emt 0:00:00]} Bb4 {[%emt 0:00:00]} 5. Qa4+ {[%emt 0:00:28]} Nc6 {[%emt 0:00:00]} 6. e3 {[%emt 0:00:28]} Bd7 {[%emt 0:00:00][%cal Oc6d4] D38: Queen's Gambit Declined: Ragozin Defence (4 Nf3 Bb4).} 7. Qc2 {[%emt 0:00:42]} O-O {[%emt 0:00:38]} 8. a3 {[%emt 0:05:21]} Bxc3+ {[%emt 0:05:59] White has an edge.} 9. Qxc3 {[%emt 0:01:50]} Ne4 {[%emt 0:20:25]} 10. Qc2 {[%emt 0:00:37] [#]} Kh8 $146 {[%emt 0:03:01]} ({Predecessor:} 10... Be8 11. Bd3 f5 12. b4 a6 13. Bb2 Rc8 14. Rc1 Rf6 15. Qb3 Bh5 16. Ng1 Rg6 17. Bf1 dxc4 18. Qxc4 {½-½ (70) Anton Guijarro,D (2475)-Almagro Llamas,P (2454) Madrid 2012}) 11. Bd3 {[%emt 0:19:23]} f5 {[%emt 0:02:54]} 12. b4 {[%emt 0:07:37][%cal Bb2b4,Bb4b5][%mdl 32]} Be8 {[%emt 0:09:11]} 13. b5 {[%emt 0:08:24]} Ne7 {[%emt 0:00:28]} ({Black should play} 13... dxc4 $14 14. Qxc4 (14. Bxe4 fxe4 15. Qxe4 Na5 $17) 14... Na5) 14. cxd5 {[%emt 0:05:25] White leaves nothing to chance now.} exd5 {[%emt 0:02:36][%cal Oc7c5]} 15. O-O {[%emt 0:00:40]} Rc8 {[%emt 0:02:34]} 16. a4 $1 {[%emt 0:05:57]} Rf6 {[%emt 0:06:02]} 17. Ne5 {[%emt 0:07:17]} c5 {[%emt 0:10:23] [#]} 18. dxc5 $1 {[%emt 0:01:12]} Rxc5 {[%emt 0:01:07]} 19. Qb2 {[%emt 0:01:29]} Qc7 {[%emt 0:05:09] [#]} (19... Ng6 $16 20. Nf3 Rc7) 20. Qd4 $1 $18 {[%emt 0:01:49]} Ng6 {[%emt 0:08:20]} 21. Nf3 {[%emt 0:08:17]} ({But not} 21. Bb2 b6 22. Nf3 h6) 21... Nf8 {[%emt 0:02:47]} 22. Ba3 {[%emt 0:02:54]} Ne6 {[%emt 0:00:57]} 23. Qb2 {[%emt 0:03:22]} Rc3 {[%emt 0:00:12]} 24. Rac1 {[%emt 0:01:01]} Rxc1 {[%emt 0:04:24]} 25. Rxc1 {[%emt 0:00:05]} ({Don't take} 25. Qxc1 $6 Qd8 26. Ne5 b6 $16) 25... Qd8 {[%emt 0:00:23]} 26. Nd4 {[%emt 0:04:23]} Bd7 $2 {[%emt 0:02:23]} (26... b6 {was necessary.} 27. f3 N4c5 28. Bxf5 Nxd4 29. exd4 Ne6) 27. f3 {[%emt 0:00:45]} N4g5 {[%emt 0:07:08]} 28. Nxf5 {[%emt 0:00:46] And now Be7 would win.} Nc5 {[%emt 0:01:16]} 29. Bxc5 {[%emt 0:07:26] Threatens to win with Be7.} Bxf5 {[%emt 0:00:38]} 30. Bxf5 {[%emt 0:00:08]} Rxf5 {[%emt 0:00:14]} 31. Bxa7 {[%emt 0:00:07]} Ne6 {[%emt 0:01:30]} 32. Qc3 {[%emt 0:01:08]} Rf8 {[%emt 0:00:49]} 33. a5 {[%emt 0:00:49]} Qd7 {[%emt 0:01:01]} 34. Qd3 {[%emt 0:00:43]} Ra8 {[%emt 0:01:25]} 35. Bb6 {[%emt 0:00:19]} Re8 {[%emt 0:01:44]} 36. Rd1 {[%emt 0:01:09]} d4 {[%emt 0:01:32]} 37. Bxd4 {[%emt 0:00:23]} Rd8 {[%emt 0:00:37] [#]} (37... Nxd4 $18 38. exd4 h6) 38. Bxg7+ $1 {[%emt 0:01:06] White mates.} Qxg7 {[%emt 0:00:14]} 39. Qxd8+ $1 {[%emt 0:00:07]} Nxd8 {[%emt 0:00:04]} 40. Rxd8+ {[%emt 0:00:08]} Qg8 {[%emt 0:00:05]} 41. Rxg8+ {[%emt 0:30:07]} Kxg8 {[%emt 0:30:04] Weighted Error Value: White=0.06 (flawless) /Black=0.46} 1-0

[Event "German Bundesliga 2021-22"]
[Site "Germany"]
[Date "2022.04.10"]
[Round "4.16"]
[White "Roseneck, Jonas"]
[Black "Rafiee, Makan"]
[Result "0-1"]
[ECO "D15"]
[WhiteElo "2376"]
[BlackElo "2338"]
[Annotator "NA RC"]
[PlyCount "50"]
[EventDate "2022.03.05"]
[EventType "team-tourn"]
[EventCountry "GER"]
[SourceTitle "playchess.com"]
[Source "ChessBase"]
[SourceQuality "1"]
[TimeControl "40/5400+30:1800+30"]

1. c4 {[%emt 0:00:00]} c6 {[%emt 0:00:00]} 2. Nc3 {[%emt 0:00:00]} d5 {[%emt 0:00:00]} 3. d4 {[%emt 0:00:00]} Nf6 {[%emt 0:00:00]} 4. Nf3 {[%emt 0:00:00]} a6 {[%emt 0:00:00]} 5. g3 {[%emt 0:00:00]} Bf5 {[%emt 0:00:00]} 6. Bg2 {[%emt 0:00:00]} b5 {[%emt 0:00:00]} 7. b3 {[%emt 0:00:00]} h6 {[%emt 0:02:33]} 8. O-O {[%emt 0:04:46]} e6 {[%emt 0:00:52]} 9. Bb2 {[%emt 0:09:59]} Nbd7 {[%emt 0:05:51]} 10. a3 {[%emt 0:17:34]} Ne4 {[%emt 0:26:01]} 11. Nd2 {[%emt 0:03:56]} Nxd2 {[%emt 0:05:48]} 12. Qxd2 {[%emt 0:00:19]} Nf6 {[%emt 0:04:02]} 13. f3 {[%emt 0:12:03]} Be7 {[%emt 0:05:28]} 14. e4 {[%emt 0:04:02]} Bh7 {[%emt 0:00:59]} 15. e5 {[%emt 0:08:27]} Nd7 {[%emt 0:00:06]} 16. Nd1 {[%emt 0:05:04]} dxc4 {[%emt 0:10:19]} 17. f4 {[%emt 0:05:14]} cxb3 {[%emt 0:00:52]} 18. Bxc6 {[%emt 0:04:05]} Rc8 {[%emt 0:00:20]} 19. d5 {[%emt 0:05:02]} Bc5+ {[%emt 0:01:10]} 20. Bd4 {[%emt 0:05:10]} Rxc6 {[%emt 0:15:18]} 21. dxc6 {[%emt 0:01:41]} Nb6 {[%emt 0:01:24]} 22. Bxc5 {[%emt 0:08:25]} Qxd2 {[%emt 0:00:05]} 23. Ne3 {[%emt 0:00:47]} Nd5 {[%emt 0:04:25]} 24. Rad1 {[%emt 0:01:42]} Qc3 {[%emt 0:00:27]} 25. Rc1 {[%emt 0:00:02]} Bc2 {[%emt 0:00:14]} 0-1

[Event "German Bundesliga 2021-22"]
[Site "Germany"]
[Date "2022.04.10"]
[Round "4.16"]
[White "Colbow, Collin"]
[Black "Moehn, Hans"]
[Result "1/2-1/2"]
[ECO "B43"]
[WhiteElo "2370"]
[BlackElo "2360"]
[Annotator "NA RC"]
[PlyCount "113"]
[EventDate "2022.03.05"]
[EventType "team-tourn"]
[EventCountry "GER"]
[SourceTitle "playchess.com"]
[Source "ChessBase"]
[SourceQuality "1"]
[TimeControl "40/5400+30:1800+30"]

1. e4 {[%emt 0:00:00]} c5 {[%emt 0:00:00]} 2. Nf3 {[%emt 0:00:00]} e6 {[%emt 0:00:00]} 3. d4 {[%emt 0:00:00]} cxd4 {[%emt 0:00:00]} 4. Nxd4 {[%emt 0:00:00]} a6 {[%emt 0:00:00]} 5. Nc3 {[%emt 0:00:00]} Qc7 {[%emt 0:00:00]} 6. Bd3 {[%emt 0:00:00]} Nf6 {[%emt 0:00:00]} 7. Qe2 {[%emt 0:00:00]} Bd6 {[%emt 0:00:00]} 8. h3 {[%emt 0:00:00]} Nc6 {[%emt 0:00:11]} 9. Nxc6 {[%emt 0:00:22]} dxc6 {[%emt 0:00:27]} 10. O-O {[%emt 0:00:24]} e5 {[%emt 0:04:55]} 11. a4 {[%emt 0:33:55]} O-O {[%emt 0:09:12]} 12. Bd2 {[%emt 0:07:21]} b6 {[%emt 0:06:31]} 13. Nd1 {[%emt 0:05:04]} Be6 {[%emt 0:16:15]} 14. Ne3 {[%emt 0:02:37]} b5 {[%emt 0:01:10]} 15. b4 {[%emt 0:13:26]} g6 {[%emt 0:12:39]} 16. c4 {[%emt 0:03:22]} Nh5 {[%emt 0:04:18]} 17. Ng4 {[%emt 0:07:17]} Rab8 {[%emt 0:10:56]} 18. axb5 {[%emt 0:06:30]} axb5 {[%emt 0:00:10]} 19. cxb5 {[%emt 0:09:27]} cxb5 {[%emt 0:00:21]} 20. Bxb5 {[%emt 0:01:26]} Qb6 {[%emt 0:29:50]} 21. Ra6 {[%emt 0:01:46]} Ng3 {[%emt 0:02:29]} 22. Qf3 {[%emt 0:00:51]} Qxb5 {[%emt 0:00:26]} 23. Nh6+ {[%emt 0:01:33]} Kg7 {[%emt 0:00:06]} 24. fxg3 {[%emt 0:00:10]} Be7 {[%emt 0:00:53]} 25. Ra7 {[%emt 0:04:19]} Rb7 {[%emt 0:00:30]} 26. Rxb7 {[%emt 0:01:24]} Qxb7 {[%emt 0:00:02]} 27. Ng4 {[%emt 0:01:17]} Bxg4 {[%emt 0:00:01]} 28. hxg4 {[%emt 0:00:09]} Qb6+ {[%emt 0:01:25]} 29. Kh2 {[%emt 0:00:53]} Qe6 {[%emt 0:00:59]} 30. Rd1 {[%emt 0:01:23]} Rb8 {[%emt 0:01:10]} 31. Rb1 {[%emt 0:00:25]} Qa2 {[%emt 0:00:32]} 32. Qc3 {[%emt 0:00:34]} Qxb1 {[%emt 0:00:25]} 33. Qxe5+ {[%emt 0:00:04]} Bf6 {[%emt 0:00:25]} 34. Qxb8 {[%emt 0:00:12]} Bd4 {[%emt 0:00:19]} 35. Bh6+ {[%emt 0:01:13]} Kxh6 {[%emt 0:00:09]} 36. Qf8+ {[%emt 0:00:12]} Bg7 {[%emt 0:01:07]} 37. g5+ {[%emt 0:00:06]} Kxg5 {[%emt 0:00:11]} 38. Qxg7 {[%emt 0:00:09]} Qxb4 {[%emt 0:00:47]} 39. Qxh7 {[%emt 0:01:33]} Qxe4 {[%emt 0:00:10]} 40. Qxf7 {[%emt 0:00:16]} Qe5 {[%emt 0:00:57]} 41. Qf8 {[%emt 0:00:00]} Kg4 {[%emt 0:00:00]} 42. Qb4+ {[%emt 0:00:00]} Kf5 {[%emt 0:00:00]} 43. Kh3 {[%emt 0:00:00]} g5 {[%emt 0:00:00]} 44. g4+ {[%emt 0:00:00]} Kg6 {[%emt 0:00:00]} 45. Qb6+ {[%emt 0:00:00]} Kg7 {[%emt 0:00:00]} 46. Qb7+ {[%emt 0:00:00]} Kg6 {[%emt 0:00:23]} 47. Qc6+ {[%emt 0:00:00]} Kg7 {[%emt 0:00:08]} 48. Qd7+ {[%emt 0:00:00]} Kg6 {[%emt 0:00:45]} 49. Qd3+ {[%emt 0:00:21]} Kh6 {[%emt 0:02:31]} 50. Qf5 {[%emt 0:04:44]} Qe3+ {[%emt 0:00:42]} 51. Kh2 {[%emt 0:00:55]} Qf4+ {[%emt 0:01:29]} 52. Kh3 {[%emt 0:00:21]} Qe3+ {[%emt 0:00:11]} 53. g3 {[%emt 0:01:16]} Qd2 {[%emt 0:02:11]} 54. Qe6+ {[%emt 0:01:09]} Kg7 {[%emt 0:00:21]} 55. Qe5+ {[%emt 0:00:14]} Kg6 {[%emt 0:00:21]} 56. Qe4+ {[%emt 0:00:21]} Kg7 {[%emt 0:01:33]} 57. Qe5+ {[%emt 0:02:03]} 1/2-1/2

[Event "German Bundesliga 2021-22"]
[Site "Germany"]
[Date "2022.04.10"]
[Round "4.16"]
[White "Pajeken, Jakob Leon"]
[Black "Lauber, Arnd"]
[Result "1/2-1/2"]
[ECO "A46"]
[WhiteElo "2370"]
[BlackElo "2411"]
[Annotator "TA"]
[PlyCount "136"]
[EventDate "2022.03.05"]
[EventType "team-tourn"]
[EventCountry "GER"]
[SourceTitle "playchess.com"]
[Source "ChessBase"]
[SourceQuality "1"]
[TimeControl "40/5400+30:1800+30"]

{[%evp 13,136,4,15,0,0,0,0,0,0,0,0,0,0,-4,14,11,9,14,22,17,16,14,14,21,21,10,47,7,46,47,43,15,38,43,36,46,42,41,60,55,53,11,12,10,30,23,30,24,32,38,64,33,56,32,26,-6,-6,-6,-6,-6,-6,-6,-5,-6,-6,-140,-133,-133,-133,-144,-144,-221,-218,-199,-222,-220,-46,-163,-172,-174,-14,-70,-62,-112,-8,-80,-40,-173,-168,-137,0,0,0,0,0,0,0,0,0,0,0,0,0,0,0,0,0,0,0,0,0,-8,-8,-8,-8,-8,-8,-8,-8,-8,0,0,0,-8,0]} 1. d4 {[%emt 0:00:00]} Nf6 {[%emt 0:00:00]} 2. Nf3 {[%emt 0:00:00]} e6 {[%emt 0:00:00]} 3. g3 {[%emt 0:00:00]} c5 {[%emt 0:00:00]} 4. Bg2 {[%emt 0:00:00]} cxd4 {[%emt 0:00:00]} 5. O-O {[%emt 0:00:00]} d5 {[%emt 0:00:00]} 6. Nxd4 {[%emt 0:00:00]} e5 {[%emt 0:11:24]} 7. Nb3 {[%emt 0:00:00]} Be6 {[%emt 0:01:06]} 8. Bg5 {[%emt 0:00:00] D02: 1 d4 d5 2 Nf3 sidelines, including 2...Nf6 3 g3 and 2...Nf6 3 Bf4.} Nbd7 {[%emt 0:05:10]} 9. e4 {[%emt 0:00:00]} dxe4 {[%emt 0:05:26]} 10. Nc3 {[%emt 0:00:00]} Be7 {[%emt 0:03:32]} 11. Nxe4 {[%emt 0:02:07]} Nxe4 {[%emt 0:00:36]} 12. Bxe7 {[%emt 0:00:07]} Qxe7 {[%emt 0:01:57]} 13. Bxe4 {[%emt 0:00:19]} Nf6 {[%emt 0:02:09]} 14. Bg2 {[%emt 0:00:59]} O-O {[%emt 0:01:27]} 15. Qe2 {[%emt 0:01:49]} Bd5 {[%emt 0:02:49]} 16. Bxd5 {[%emt 0:03:17]} Nxd5 {[%emt 0:00:10]} 17. Rfe1 {[%emt 0:01:01]} Rfe8 {[%emt 0:05:48]} 18. Rad1 {[%emt 0:03:12]} Nf6 {[%emt 0:04:54]} 19. Nd4 {[%emt 0:07:27][%cal Bb3d4,Bd4b5,Bb5d6][%mdl 32] [#]} Qc5 $146 {[%emt 0:05:16]} ({Predecessor:} 19... a6 20. Nf5 Qe6 21. Nd6 Re7 22. Qc4 b5 23. Qxe6 Rxe6 24. c4 bxc4 25. Nxc4 e4 {½-½ (37) Mukashev,A (2256)-Hosseinipour,M (2251) Sharjah 2013}) 20. Nb5 {[%emt 0:11:09][%cal Ob2b4]} e4 {[%emt 0:08:55]} 21. Nd6 {[%emt 0:03:11]} Re6 {[%emt 0:00:23]} 22. Qb5 {[%emt 0:09:15]} Qc7 {[%emt 0:05:13] [#]} (22... Qxc2 {seems wilder.} 23. Rc1 Qd3 24. Qxb7 Rf8) 23. Qc4 $1 {[%emt 0:02:24]} Qxc4 {[%emt 0:00:11]} 24. Nxc4 {[%emt 0:05:47]} Rc8 {[%emt 0:00:47]} 25. Rd4 {[%emt 0:00:48]} b5 {[%emt 0:05:05]} 26. Ne3 {[%emt 0:01:08]} h5 {[%emt 0:01:48]} 27. c4 {[%emt 0:01:47]} bxc4 {[%emt 0:01:36]} 28. Nxc4 {[%emt 0:00:15]} Rb8 {[%emt 0:04:22]} 29. b3 {[%emt 0:02:13]} Rc8 {[%emt 0:03:06]} 30. h3 {[%emt 0:02:21]} a6 {[%emt 0:00:18]} 31. Red1 {[%emt 0:02:18]} g6 {[%emt 0:04:38]} 32. Kf1 {[%emt 0:03:45]} (32. Rd6 $5 {[%cal Rd6e6]}) 32... Kg7 {[%emt 0:01:52]} 33. Ke2 {[%emt 0:00:43]} (33. Rd6 $5 {[%cal Rd6e6]}) 33... h4 {[%emt 0:00:30]} 34. g4 {[%emt 0:00:38]} Nh7 {[%emt 0:00:25]} 35. Rd5 {[%emt 0:02:27] Against Ng5} Kh6 {[%emt 0:01:06]} 36. Kf1 $1 {[%emt 0:06:56]} Ng5 {[%emt 0:00:29]} 37. Kg2 {[%emt 0:00:05]} Rf6 {[%emt 0:05:38]} 38. Re5 {[%emt 0:05:23]} Rf4 {[%emt 0:06:17]} 39. Rdd5 {[%emt 0:04:55]} (39. Rd7 $11 {keeps the balance.}) 39... Nf3 $17 {[%emt 0:02:08]} 40. Re7 {[%emt 0:09:14]} Ne1+ $1 {[%emt 0:01:25]} 41. Kg1 {[%emt 0:33:54]} Nd3 {[%emt 0:00:00]} 42. Rdd7 {[%emt 0:00:00]} (42. Rd4 $17 Nxf2 43. Kg2) 42... Nxf2 $19 {[%emt 0:00:00]} 43. Kg2 {[%emt 0:00:00]} Nd3 {[%emt 0:02:24]} 44. Rxf7 {[%emt 0:00:00]} Ne1+ $2 {[%emt 0:00:54]} (44... Rxf7 $19 45. Rxf7 Re8) 45. Kh1 {[%emt 0:00:00]} ({White must play} 45. Kg1 $15 Nf3+ 46. Kg2 Rxf7 47. Rxf7) 45... Rxf7 {[%emt 0:08:27]} 46. Rxf7 {[%emt 0:00:00][%mdl 4096] Endgame KRN-KRN} Nf3 $2 {[%emt 0:00:04]} (46... Rd8 $19 {White must now prevent ...Rd3.} 47. Rf1 Nf3) 47. Rd7 {[%emt 0:00:00]} ({White should play} 47. Rf6 $11) 47... Ng5 {[%emt 0:08:24]} 48. Kg2 {[%emt 0:00:00]} Rc6 {[%emt 0:04:23]} (48... Rf8 $17 {And now ...Rf3 would win.} 49. Rd6 Kh7) 49. Rd2 {[%emt 0:00:00]} (49. Rd6 $11 Rxd6 50. Nxd6) 49... Rf6 $1 $17 {[%emt 0:01:01]} 50. Ne5 {[%emt 0:00:00] [#] Inhibits Rf3.} (50. Rd6 $15 Rxd6 51. Nxd6) 50... Ne6 $1 $19 {[%emt 0:01:52]} 51. Kh2 {[%emt 0:00:00] [#]} e3 {[%emt 0:03:40]} ({Black should try} 51... Rf1 $1 $17 {Strongly threatening ...Nf4.} 52. Re2 Nf4) 52. Re2 $1 $11 {[%emt 0:00:00] The position is equal.} Rf2+ {[%emt 0:00:04]} 53. Rxf2 {[%emt 0:00:00]} exf2 {[%emt 0:00:03] KN-KN} 54. Kg2 {[%emt 0:00:00]} Nf4+ {[%emt 0:00:03]} (54... Ng5 {looks sharper.} 55. b4 Nxh3 56. a4 Kg5) 55. Kxf2 {[%emt 0:00:00]} Nxh3+ {[%emt 0:00:02]} 56. Kf3 {[%emt 0:00:00]} Ng5+ {[%emt 0:00:58]} 57. Kg2 {[%emt 0:00:00]} Ne6 {[%emt 0:00:24]} 58. Kh3 {[%emt 0:00:00]} g5 {[%emt 0:00:58]} 59. b4 {[%emt 0:00:00]} Kg7 {[%emt 0:00:12]} 60. a4 {[%emt 0:00:00]} Kf6 {[%emt 0:01:33]} 61. Nd3 {[%emt 0:00:00]} Ke7 {[%emt 0:00:46]} 62. b5 {[%emt 0:00:00]} axb5 {[%emt 0:00:04]} 63. axb5 {[%emt 0:00:00]} Kd6 {[%emt 0:00:28]} 64. b6 {[%emt 0:00:00]} Kc6 {[%emt 0:00:33]} 65. Ne5+ {[%emt 0:00:00]} Kxb6 {[%emt 0:00:04]} 66. Nf3 $1 {[%emt 0:00:00]} Nf4+ {[%emt 0:00:52]} 67. Kh2 {[%emt 0:00:00]} Ne6 {[%emt 0:00:04]} 68. Kh3 {[%emt 0:00:00]} Nf4+ {Weighted Error Value: White=0.24 (precise) /Black=0.21 (precise)} 1/2-1/2

[Event "German Bundesliga 2021-22"]
[Site "Germany"]
[Date "2022.04.30"]
[Round "5.1"]
[White "Sarana, Alexey"]
[Black "Wojtaszek, Radoslaw"]
[Result "1/2-1/2"]
[ECO "D38"]
[WhiteElo "2685"]
[BlackElo "2686"]
[Annotator "TA"]
[PlyCount "50"]
[EventDate "2022.03.05"]
[EventType "team-tourn"]
[EventCountry "GER"]
[SourceTitle "playchess.com"]
[Source "ChessBase"]
[SourceQuality "1"]
[TimeControl "40/5400+30:1800+30"]

{[%evp 14,50,17,13,21,17,27,27,18,22,31,30,31,23,34,28,25,18,27,24,29,6,14,12,13,6,6,9,12,12,6,6,6,8,13,5,18,5,17]} 1. d4 {[%emt 0:00:00]} Nf6 {[%emt 0:00:00]} 2. c4 {[%emt 0:00:00]} e6 {[%emt 0:00:00]} 3. Nf3 {[%emt 0:00:00]} d5 {[%emt 0:00:00]} 4. Nc3 {[%emt 0:00:00]} Bb4 {[%emt 0:00:00]} 5. Bg5 {[%emt 0:00:00]} h6 {[%emt 0:00:00]} 6. Bxf6 {[%emt 0:00:00]} Qxf6 {[%emt 0:00:00]} 7. Qa4+ {[%emt 0:00:00]} Nc6 {[%emt 0:00:00]} 8. e3 {[%emt 0:00:00]} O-O {[%emt 0:00:00] D38: Queen's Gambit Declined: Ragozin Defence (4 Nf3 Bb4).} 9. Be2 {[%emt 0:00:00]} Bd7 {[%emt 0:00:00][%cal Oc6d4] [#] And now ...Nxd4! would win.} 10. Qb3 dxc4 {[%emt 0:00:00] White has an edge.} 11. Qxc4 {[%emt 0:04:00]} Qg6 {[%emt 0:00:00]} 12. O-O {[%emt 0:03:30]} Bd6 {[%emt 0:00:00]} 13. Rfd1 {[%emt 0:13:30]} Na5 {[%emt 0:00:00]} 14. Qd3 {[%emt 0:00:00]} Qxd3 $1 {[%emt 0:00:00]} 15. Bxd3 {[%emt 0:00:00][%cal Be2d3,Bd3b1,Bb1e4][%mdl 32]} Nc6 {[%emt 0:00:00][%cal Ba5c6,Bc6b4,Bb4d5][%mdl 32] Prevents Ne5.} 16. Rac1 {[%emt 0:00:30]} Rfd8 {[%emt 0:00:00]} 17. Ne4 {[%emt 0:06:30]} Nb4 {[%emt 0:00:00] The position is equal.} 18. Bb1 {[%emt 0:02:30]} Ba4 {[%emt 0:00:00]} 19. Rd2 {[%emt 0:01:30]} Bc6 {[%emt 0:06:00]} 20. a3 {[%emt 0:03:30]} Bxe4 {[%emt 0:00:30]} 21. Bxe4 {[%emt 0:00:30]} Nd5 {[%emt 0:00:30] [#]} 22. Ne1 $146 {[%emt 0:03:30]} ({Predecessor:} 22. g3 c6 23. Ne1 Nf6 24. Bf3 e5 25. dxe5 Bxe5 26. Rcd1 Rxd2 27. Rxd2 Bc7 28. Kf1 {½-½ (39) Fressinet,L (2720)-Bacrot,E (2695) Grosseto Prugna 2015}) 22... c6 {[%emt 0:09:30]} 23. Nd3 {[%emt 0:03:30]} a5 {[%emt 0:02:30]} 24. g4 {[%emt 0:03:30]} g5 {[%emt 0:13:30]} 25. Kg2 {[%emt 0:01:30]} Kg7 {[%emt 0:06:30] An even fight not without its subleties.  Weighted Error Value: White=0.04 (flawless) /Black=0.01 (flawless)} 1/2-1/2